lending/lending_fUSD_20250621
["ID","MTS","AMOUNT","RATE_DAILY","PERIOD"]
[366855612,1750518645360,-527.0,0.000274,2]
[366855613,1750518645370,-674.51880831,0.00027417,17]
[366855614,1750518645380,-500.0,0.00027424,2]
[366855615,1750518645390,-500.0,0.00027424,2]
[366855616,1750518645400,-500.0,0.00027424,2]
[366855617,1750518645410,-150.0,0.00027424,2]
[366855618,1750518645419,-500.0,0.00027424,2]
[366855619,1750518645428,-500.0,0.00027424,2]
[366855620,1750518645438,-150.0,0.00027424,2]
[366855621,1750518645448,-500.0,0.00027424,2]
[366855622,1750518645457,-500.0,0.00027424,2]
[366855623,1750518645467,-150.0,0.00027424,2]
[366855624,1750518645476,-150.0,0.00027424,2]
[366855625,1750518645486,-500.0,0.00027424,2]
[366855626,1750518645495,-502.50527384,0.00027424,2]
[366855627,1750518645506,-500.0,0.00027452,2]
[366855628,1750518645516,-500.0,0.00027452,2]
[366855629,1750518645528,-500.0,0.00027452,2]
[366855630,1750518645538,-150.0,0.00027452,2]
[366855631,1750518645548,-500.0,0.00027452,2]
[366855632,1750518645558,-500.0,0.00027452,2]
[366855633,1750518645568,-150.0,0.00027452,2]
[366855634,1750518645578,-649.18749161,0.00027452,2]
[366855635,1750518645587,-211.64149646,0.00027452,2]
[366855636,1750518645597,-182.23679545,0.00027452,2]
[366855637,1750518645607,-150.0,0.00027452,2]
[366855638,1750518645617,-500.0,0.00027452,2]
[366855639,1750518645627,-1000.0,0.00027464,2]
[366855640,1750518645636,-500.0,0.00027479,2]
[366855641,1750518645646,-582.64866435,0.00027479,2]
[366855642,1750518645655,-308.23207721,0.00027479,2]
[366855643,1750518645665,-150.0,0.00027479,2]
[366855644,1750518645675,-500.0,0.00027479,2]
[366855645,1750518645698,-419.04475821,0.00027479,2]
[366855646,1750518645716,-151.04634641,0.00027479,2]
[366855647,1750518645738,-152.30574078,0.00027479,2]
[366855648,1750518645759,-500.0,0.00027479,2]
[366855649,1750518645775,-500.0,0.00027507,2]
[366855650,1750518645795,-150.0,0.00027507,2]
[366855651,1750518645816,-379.74616341,0.00027507,2]
[366855652,1750518645835,-554.90480879,0.00027507,2]
[366855653,1750518645856,-641.00078552,0.00027524,2]
[366855654,1750518645873,-485.9607503,0.00027534,2]
[366855655,1750518645893,-211.28431149,0.00027534,2]
[366855656,1750518645907,-2000.0,0.00027599,2]
[366855657,1750518645928,-500.0,0.00027658,30]
[366855658,1750518645941,-500.0,0.00027658,30]
[366855659,1750518645959,-501.66322896,0.00027658,30]
[366855660,1750518645974,-500.0,0.00027658,30]
[366855661,1750518645989,-500.0,0.00027658,30]
[366855662,1750518646009,-528.96364369,0.00027658,30]
[366855663,1750518646024,-600.0,0.00027658,30]
[366855664,1750518646041,-500.0,0.00027658,30]
[366855665,1750518646057,-600.0,0.00027658,30]
[366855666,1750518646073,-338.51975065,0.00027658,30]
[366855667,1750518646090,-600.0,0.00027658,30]
[366855668,1750518646105,-600.0,0.00027658,30]
[366855669,1750518646130,-600.0,0.00027658,30]
[366855670,1750518646146,-600.0,0.00027658,30]
[366855671,1750518646161,-600.0,0.00027658,30]
[366855672,1750518646179,-600.0,0.00027658,30]
[366855673,1750518646195,-500.0,0.00027658,30]
[366855674,1750518646211,-500.0,0.00027658,30]
[366855675,1750518646228,-600.0,0.00027658,30]
[366855676,1750518646244,-500.0,0.00027658,30]
[366855677,1750518646260,-600.0,0.00027658,30]
[366855678,1750518646276,-248.30834442,0.00027658,30]
[366855679,1750518646291,-600.0,0.00027658,30]
[366855680,1750518646308,-600.0,0.00027658,30]
[366855681,1750518646324,-600.0,0.00027658,30]
[366855682,1750518646342,-600.0,0.00027658,30]
[366855683,1750518646359,-162.7666287,0.00027658,30]
[366855684,1750518646376,-151.0,0.00027658,7]
[366855685,1750518646392,-151.0,0.00027658,7]
[366855686,1750518646407,-151.0,0.00027658,7]
[366855687,1750518646422,-151.0,0.00027658,7]
[366855688,1750518646440,-151.0,0.00027658,7]
[366855689,1750518646456,-151.0,0.00027658,7]
[366855690,1750518646471,-152.040102,0.00027658,7]
[366855691,1750518646487,-151.0,0.00027658,7]
[366855692,1750518646503,-151.0,0.00027658,7]
[366855693,1750518646519,-151.0,0.00027658,7]
[366855694,1750518646535,-151.0,0.00027658,7]
[366855695,1750518646551,-328.122819,0.00027658,7]
[366855696,1750518646567,-328.122819,0.00027658,7]
[366855697,1750518646582,-640.324171,0.00027658,7]
[366855698,1750518646598,-640.324171,0.00027658,7]
[366855699,1750518646614,-151.0,0.00027658,7]
[366855700,1750518646629,-151.0,0.00027658,7]
[366855701,1750518646645,-153.828957,0.00027658,7]
[366855702,1750518646662,-151.0,0.00027658,7]
[366855703,1750518646678,-168.05619628,0.0002774,2]
[366855704,1750518646694,-400.0,0.00027749,2]
[366855705,1750518646709,-150.0,0.0002782,2]
[366855706,1750518646725,-444.785,0.0002782,2]
[366855707,1750518646740,-3335.0,0.0002782,2]
[366855708,1750518646756,-638.0,0.0002782,2]
[366855709,1750518646772,-803.0,0.0002782,2]
[366855710,1750518646788,-928.0,0.0002782,2]
[366855711,1750518646804,-559.0,0.0002782,2]
[366855712,1750518646821,-2005.0,0.0002782,2]
[366855713,1750518646837,-526.645,0.0002782,2]
[366855714,1750518646854,-1676.0,0.0002782,2]
[366855715,1750518646870,-1161.0,0.0002782,2]
[366855716,1750518646886,-641.00078552,0.00027866,2]
[366855717,1750518646901,-714.33,0.00027867,2]
[366855718,1750518646917,-150.0,0.00027867,2]
[366855719,1750518646932,-168.0,0.00027869,2]
[366855720,1750518646947,-1028.34530853,0.00027878,5]
[366855721,1750518646962,-385.0,0.000279,2]
[366855722,1750518646977,-1200.0,0.000279,2]
[366855723,1750518646995,-527.24700545,0.000279,2]
[366855724,1750518647009,-12297.29,0.000279,2]
[366855725,1750518647026,-113406.35,0.000279,7]
[366855726,1750518647041,-13685.37341023,0.000279,2]
[366855727,1750518647056,-13685.37341023,0.000279,2]
[366855728,1750518647071,-13685.37341023,0.000279,2]
[366855729,1750518647087,-13685.37341023,0.000279,2]
[366855730,1750518647102,-13685.37341023,0.000279,2]
[366855731,1750518647117,-13685.37341023,0.000279,2]
[366855732,1750518647132,-151.0,0.000279,7]
[366855733,1750518647148,-151.0,0.000279,7]
[366855734,1750518647163,-151.0,0.000279,7]
[366855735,1750518647179,-151.0,0.000279,7]
[366855736,1750518647193,-184.720313,0.000279,7]
[366855737,1750518647209,-151.0,0.000279,7]
[366855738,1750518647224,-232.165969,0.000279,7]
[366855739,1750518647239,-232.165969,0.000279,7]
[366855740,1750518647254,-151.0,0.000279,7]
[366855741,1750518647269,-151.0,0.000279,7]
[366855742,1750518647283,-151.0,0.000279,7]
[366855743,1750518647299,-151.0,0.000279,7]
[366855744,1750518647313,-4000.0,0.000279,10]
[366855745,1750518647329,-12297.29,0.000279,2]
[366855746,1750518647343,-168.0,0.00027931,2]
[366855747,1750518647358,-300.0,0.00027946,2]
[366855748,1750518647373,-674.51880831,0.00027969,18]
[366855749,1750518647388,-453.0,0.0002797,120]
[366855750,1750518647403,-150.5,0.0002797,120]
[366855751,1750518647417,-196.47,0.00027978,2]
[366855752,1750518647432,-453.0,0.0002798,120]
[366855753,1750518647446,-150.5,0.0002798,120]
[366855754,1750518647460,-453.0,0.0002799,120]
[366855755,1750518647475,-150.5,0.0002799,120]
[366855756,1750518647491,-2999.99,0.00028,2]
[366855757,1750518647506,-2999.99,0.00028,2]
[366855758,1750518647522,-2999.99,0.00028,2]
[366855759,1750518647537,-278.9,0.00028,2]
[366855760,1750518647552,-1787.93,0.00028,2]
[366855761,1750518647566,-3000.04,0.00028,2]
[366855762,1750518647581,-2999.99,0.00028,2]
[366855763,1750518647596,-1000.0,0.00028,2]
[366855764,1750518647612,-826.0,0.00028,3]
[366855765,1750518647627,-151.0,0.00028,7]
[366855766,1750518647642,-157.861356,0.00028,7]
[366855767,1750518647656,-151.0,0.00028,7]
[366855768,1750518647672,-151.0,0.00028,7]
[366855769,1750518647687,-151.0,0.00028,7]
[366855770,1750518647702,-151.0,0.00028,7]
[366855771,1750518647717,-151.0,0.00028,7]
[366855772,1750518647732,-151.0,0.00028,7]
[366855773,1750518647746,-151.0,0.00028,7]
[366855774,1750518647760,-151.0,0.00028,7]
[366855775,1750518647774,-151.0,0.00028,7]
[366855776,1750518647789,-151.0,0.00028,7]
[366855777,1750518647803,-151.0,0.00028,7]
[366855778,1750518647818,-151.0,0.00028,7]
[366855779,1750518647833,-151.0,0.00028,7]
[366855780,1750518647848,-867.160274,0.00028,7]
[366855781,1750518647864,-151.0,0.00028,7]
[366855782,1750518647878,-2161.883809,0.00028,2]
[366855783,1750518647893,-7036.83,0.00028,2]
[366855784,1750518647909,-5424.25,0.00028,2]
[366855785,1750518647924,-5541.56,0.00028,2]
[366855786,1750518647939,-4433.25,0.00028,2]
[366855787,1750518647955,-300.27,0.00028001,2]
[366855788,1750518647970,-150.0,0.00028001,2]
[366855789,1750518647984,-481.0,0.0002802,2]
[366855790,1750518648001,-13685.37341023,0.00028067,2]
[366855791,1750518648017,-8974.03621499,0.00028078,2]
[366855792,1750518648420,-3553.0579065,0.00028078,2]
[366855793,1750518648464,-231.28369723,0.00028081,2]
[366855794,1750518648485,-168.3888056,0.00028081,2]
[366855795,1750518648495,-113406.35,0.000281,7]
[366855796,1750518648506,-150.0,0.00028118,2]
[366855797,1750518648515,-1465.001357,0.00028129,8]
[366855798,1750518648526,-150.0,0.00028131,2]
[366855799,1750518648536,-150.0,0.00028131,2]
[366855800,1750518648547,-150.0,0.00028131,2]
[366855801,1750518648558,-150.0,0.00028131,2]
[366855802,1750518648568,-150.0,0.00028131,2]
[366855803,1750518648579,-150.0,0.00028131,2]
[366855804,1750518648588,-150.0,0.00028131,2]
[366855805,1750518648598,-150.0,0.00028131,2]
[366855806,1750518648609,-150.0,0.00028131,2]
[366855807,1750518648619,-150.0,0.00028131,2]
[366855808,1750518648630,-150.0,0.00028131,2]
[366855809,1750518648640,-223.193,0.00028131,2]
[366855810,1750518648650,-168.0,0.00028158,2]
[366855811,1750518648660,-202.0,0.00028162,11]
[366855812,1750518648671,-228.71581217,0.00028186,2]
[366855813,1750518648682,-1000.0,0.00028204,2]
[366855814,1750518648692,-641.00078552,0.00028208,2]
[366855815,1750518648702,-150.0,0.00028242,2]
[366855816,1750518648712,-150.0,0.00028278,2]
[366855817,1750518648722,-150.0,0.00028288,2]
[366855818,1750518648731,-150.0,0.0002829,2]
[366855819,1750518648742,-1000.0,0.0002831,2]
[366855820,1750518648752,-150.0,0.0002832,2]
[366855821,1750518648762,-150.0,0.00028348,2]
[366855822,1750518648772,-1000.0,0.00028358,2]
[366855823,1750518648782,-150.0,0.00028358,2]
[366855824,1750518648792,-150.0,0.00028363,2]
[366855825,1750518648803,-150.0,0.00028386,2]
[366855826,1750518648813,-168.0,0.00028395,2]
[366855827,1750518648823,-168.0,0.00028404,2]
[366855828,1750518648834,-150.0,0.00028429,2]
[366855829,1750518648843,-150.0,0.00028433,2]
[366855830,1750518648854,-150.0,0.0002844,2]
[366855831,1750518648864,-150.0,0.00028449,2]
[366855832,1750518648874,-150.0,0.00028479,2]
[366855833,1750518648884,-150.0,0.00028482,2]
[366855834,1750518648894,-150.0,0.00028492,2]
[366855835,1750518648904,-300.0,0.00028494,2]
[366855836,1750518648914,-150.0,0.00028498,2]
[366855837,1750518648923,-1500.0,0.000285,2]
[366855838,1750518648933,-150.0,0.00028504,2]
[366855839,1750518648944,-150.0,0.00028512,2]
[366855840,1750518648954,-150.0,0.00028515,2]
[366855841,1750518648963,-150.0,0.00028516,2]
[366855842,1750518648973,-674.51880831,0.00028521,19]
[366855843,1750518648983,-150.0,0.00028527,2]
[366855844,1750518648996,-641.00078552,0.00028549,2]
[366855845,1750518649005,-481.0,0.00028563,7]
[366855846,1750518649015,-150.0,0.00028566,2]
[366855847,1750518649026,-150.0,0.00028571,2]
[366855848,1750518649035,-150.0,0.00028573,2]
[366855849,1750518649045,-150.0,0.00028573,2]
[366855850,1750518649054,-150.0,0.00028574,2]
[366855851,1750518649064,-150.0,0.00028584,2]
[366855852,1750518649073,-150.0,0.00028584,2]
[366855853,1750518649083,-29011.648546,0.000286,30]
[366855854,1750518649093,-150.0,0.00028611,2]
[366855855,1750518649103,-151.0,0.00028612,3]
[366855856,1750518649112,-150.0,0.00028612,2]
[366855857,1750518649122,-150.0,0.00028616,2]
[366855858,1750518649132,-324.3,0.00028621,120]
[366855859,1750518649141,-150.0,0.00028623,2]
[366855860,1750518649151,-150.0,0.00028626,2]
[366855861,1750518649161,-150.0,0.00028627,2]
[366855862,1750518649171,-150.0,0.00028643,2]
[366855863,1750518649181,-150.0,0.00028661,2]
[366855864,1750518649192,-150.0,0.00028666,2]
[366855865,1750518649202,-150.0,0.00028674,2]
[366855866,1750518649213,-150.0,0.00028682,2]
[366855867,1750518649223,-150.0,0.00028682,2]
[366855868,1750518649234,-355.03,0.00028682,2]
[366855869,1750518649245,-300.0,0.00028682,2]
[366855870,1750518649255,-150.0,0.00028682,2]
[366855871,1750518649266,-170.94,0.00028682,2]
[366855872,1750518649276,-355.03,0.00028682,2]
[366855873,1750518649286,-355.03,0.00028682,2]
[366855874,1750518649296,-304.1,0.00028682,2]
[366855875,1750518649305,-170.94,0.00028682,2]
[366855876,1750518649315,-170.94,0.00028682,2]
[366855877,1750518649324,-170.89,0.00028682,2]
[366855878,1750518649334,-150.0,0.00028688,2]
[366855879,1750518649344,-303.0,0.00028689,2]
[366855880,1750518649354,-163.58,0.00028689,2]
[366855881,1750518649363,-163.58,0.00028689,2]
[366855882,1750518649373,-163.58,0.00028689,2]
[366855883,1750518649382,-163.58,0.00028689,2]
[366855884,1750518649392,-150.0,0.0002869,2]
[366855885,1750518649402,-911.04,0.0002869,2]
[366855886,1750518649411,-150.0,0.0002869,2]
[366855887,1750518649422,-301.69,0.0002869,2]
[366855888,1750518649432,-150.0,0.0002869,2]
[366855889,1750518649442,-455.52,0.0002869,2]
[366855890,1750518649452,-150.0,0.0002869,2]
[366855891,1750518649462,-455.52,0.0002869,2]
[366855892,1750518649472,-150.0,0.00028691,2]
[366855893,1750518649482,-150.0,0.000287,2]
[366855894,1750518649492,-150.0,0.00028704,2]
[366855895,1750518649502,-150.0,0.00028726,2]
[366855896,1750518649511,-600.0,0.00028729,2]
[366855897,1750518649521,-203.19164962,0.00028737,2]
[366855898,1750518649531,-150.0,0.00028737,2]
[366855899,1750518649541,-150.0,0.0002874,2]
[366855900,1750518649551,-150.0,0.00028742,2]
[366855901,1750518649561,-150.0,0.00028746,2]
[366855902,1750518649570,-150.0,0.00028751,2]
[366855903,1750518649580,-150.0,0.00028757,2]
[366855904,1750518649589,-150.0,0.00028763,2]
[366855905,1750518649599,-7758.94,0.00028767,2]
[366855906,1750518649609,-150.0,0.00028771,2]
[366855907,1750518649618,-150.0,0.00028773,2]
[366855908,1750518649627,-150.0,0.00028776,2]
[366855909,1750518649638,-150.0,0.00028777,2]
[366855910,1750518649647,-150.0,0.00028777,2]
[366855911,1750518649657,-150.0,0.00028779,2]
[366855912,1750518649667,-150.0,0.00028779,2]
[366855913,1750518649677,-150.0,0.00028793,2]
[366855914,1750518649687,-150.0,0.00028797,2]
[366855915,1750518649697,-2677.94,0.000288,2]
[366855916,1750518649707,-7036.83,0.000288,2]
[366855917,1750518649718,-2677.94,0.000288,2]
[366855918,1750518649727,-333.93,0.000288,2]
[366855919,1750518649737,-333.93,0.000288,2]
[366855920,1750518649747,-113406.35,0.000288,7]
[366855921,1750518649757,-1595.5,0.00028816,2]
[366855922,1750518649767,-1385.85,0.0002882,2]
[366855923,1750518649779,-532.58,0.0002882,2]
[366855924,1750518649789,-150.0,0.0002882,2]
[366855925,1750518649798,-150.0,0.00028822,2]
[366855926,1750518649809,-150.0,0.00028826,2]
[366855927,1750518649819,-150.0,0.00028837,2]
[366855928,1750518649828,-150.0,0.00028839,2]
[366855929,1750518649840,-1000.0,0.0002884,11]
[366855930,1750518649850,-1000.0,0.0002884,11]
[366855931,1750518649860,-1000.0,0.0002884,11]
[366855932,1750518649870,-1000.0,0.0002884,11]
[366855933,1750518649880,-1000.0,0.0002884,11]
[366855934,1750518649890,-1000.0,0.0002884,11]
[366855935,1750518649900,-1000.0,0.0002884,11]
[366855936,1750518649910,-1000.0,0.0002884,11]
[366855937,1750518649920,-1000.0,0.0002884,11]
[366855938,1750518649930,-1000.0,0.0002884,11]
[366855939,1750518649941,-150.0,0.00028847,2]
[366855940,1750518649952,-357.71891414,0.00028855,120]
[366855941,1750518649962,-1423.83854959,0.00028855,120]
[366855942,1750518649972,-150.0,0.00028877,2]
[366855943,1750518649982,-150.0,0.00028884,2]
[366855944,1750518649993,-150.0,0.00028888,2]
[366855945,1750518650003,-8974.03621499,0.00028889,2]
[366855946,1750518650013,-3553.0579065,0.00028889,2]
[366855947,1750518650024,-641.00078552,0.00028891,2]
[366855948,1750518650034,-150.0,0.00028895,2]
[366855949,1750518650044,-2677.94,0.000289,2]
[366855950,1750518650054,-257.13756037,0.000289,2]
[366855951,1750518650064,-333.93,0.000289,2]
[366855952,1750518650074,-5000.0,0.000289,10]
[366855953,1750518650085,-150.0,0.00028903,2]
[366855954,1750518650095,-150.0,0.00028922,2]
[366855955,1750518650105,-150.0,0.00028928,2]
[366855956,1750518650115,-150.77,0.00028929,2]
[366855957,1750518650125,-150.0,0.00028935,2]
[366855958,1750518650135,-150.0,0.00028937,2]
[366855959,1750518650145,-150.0,0.00028939,2]
[366855960,1750518650155,-150.0,0.00028956,2]
[366855961,1750518650165,-150.0,0.00028956,2]
[366855962,1750518650175,-150.0,0.00028967,2]
[366855963,1750518650184,-150.0,0.00028968,2]
[366855964,1750518650194,-150.0,0.00028969,2]
[366855965,1750518650204,-500.0,0.0002897,2]
[366855966,1750518650213,-1000.0,0.0002897,2]
[366855967,1750518650224,-150.0,0.00028972,2]
[366855968,1750518650234,-150.0,0.00028989,2]
[366855969,1750518650244,-18650.8571868,0.00028991,2]
[366855970,1750518650254,-10458.3440327,0.00028991,2]
[366855971,1750518650263,-230197.6960998,0.00028991,2]
[366855972,1750518650274,-151.0,0.00028991,7]
[366855973,1750518650283,-1579.2592953,0.00028991,2]
[366855974,1750518650293,-151.0,0.00028991,7]
[366855975,1750518650302,-640.324171,0.00028991,7]
[366855976,1750518650312,-640.324171,0.00028991,7]
[366855977,1750518650321,-151.0,0.00028991,7]
[366855978,1750518650331,-151.0,0.00028991,7]
[366855979,1750518650341,-151.0,0.00028991,7]
[366855980,1750518650351,-151.0,0.00028991,7]
[366855981,1750518650361,-151.0,0.00028991,7]
[366855982,1750518650371,-21977.9412756,0.00028991,2]
[366855983,1750518650380,-151.0,0.00028991,7]
[366855984,1750518650390,-544.562858,0.00028991,7]
[366855985,1750518650399,-544.562858,0.00028991,7]
[366855986,1750518650409,-151.0,0.00028991,7]
[366855987,1750518650419,-151.0,0.00028991,7]
[366855988,1750518650429,-151.0,0.00028991,7]
[366855989,1750518650439,-151.0,0.00028991,7]
[366855990,1750518650450,-250.461245,0.00028991,7]
[366855991,1750518650460,-151.0,0.00028991,7]
[366855992,1750518650470,-250.461245,0.00028991,7]
[366855993,1750518650480,-151.0,0.00028991,7]
[366855994,1750518650490,-206.306235,0.00028991,7]
[366855995,1750518650499,-206.306235,0.00028991,7]
[366855996,1750518650509,-2869163.10393817,0.00028992,4]
[366855997,1750518651680,-362.86995245,0.00024281,2]
[366855998,1750518651690,-1154.58665576,0.00028992,4]
[366855999,1750518651702,-26862.13356365,0.00028992,4]
[366856000,1750518651715,-9673.09310311,0.00028992,4]
[366856005,1750519508850,56009.54546032,0.00012,2]
[366856008,1750519619847,536.0,0.0002465,120]
[366856015,1750519656503,154.09,0.00013699,2]
[366856016,1750519726816,10000.0,0.00024658,120]
[366856054,1750519832101,-202.0,0.00019039,2]
[366856057,1750519832112,-311.86994497,0.0002,7]
[366856060,1750519832124,-178.13005503,0.0002,7]
[366856062,1750519832135,-219.86994497,0.0002,7]
[366856064,1750519832147,-270.13005503,0.0002,7]
[366856066,1750519832156,-202.0,0.0002028,3]
[366856068,1750519832166,-18.36994497,0.00021521,5]
[366856071,1750519832212,-183.63005503,0.00021521,5]
[366856073,1750519832222,-163.58490402,0.00021648,2]
[366856075,1750519832232,-1327.38429089,0.00021648,2]
[366856077,1750519832242,-625.0,0.000219,2]
[366856079,1750519832252,-2910.52910469,0.00022,2]
[366856086,1750519832306,-1425.55987746,0.00022,2]
[366856088,1750519832318,-3194.60848345,0.00022,2]
[366856091,1750519832331,-2469.3025344,0.00022,2]
[366856093,1750519832342,-115.8274656,0.00022043,2]
[366856095,1750519832356,-384.1725344,0.00022043,2]
[366856097,1750519832366,-250.0,0.00022193,2]
[366856099,1750519832376,-1831.13754042,0.00022386,2]
[366856101,1750519832388,-1792.44673086,0.00022386,2]
[366856104,1750519832399,-773.07819536,0.00022386,2]
[366856107,1750519832421,-1177.35489777,0.00022386,2]
[366856109,1750519832431,-202.0,0.00022763,7]
[366856111,1750519832441,-250.0,0.0002282,2]
[366856113,1750519832451,-694.50846785,0.000229,8]
[366856115,1750519832460,-5103.22330948,0.00023,2]
[366856198,1750519838106,-4896.77669052,0.00023,2]
[366856199,1750519838117,-376.72330948,0.00023,30]
[366856200,1750519838130,-764.21430668,0.00023,30]
[366856201,1750519838139,-245.49,0.00023163,2]
[366856202,1750519838149,-249.84,0.00023163,2]
[366856203,1750519838160,-154.09,0.00023182,2]
[366856204,1750519838171,-302.17,0.00023219,2]
[366856205,1750519838180,-72.6627081,0.00023247,2]
[366856206,1750519838192,-176.1672919,0.00023247,2]
[366856207,1750519838202,-216.65036935,0.00023383,9]
[366856208,1750519838214,-477.85809847,0.00023383,9]
[366856209,1750519838224,-302.81,0.00023388,2]
[366856210,1750519838234,-5304.78,0.00023431,2]
[366856211,1750519838244,-166.27,0.00023662,2]
[366856212,1750519838254,-248.07,0.00023836,2]
[366856213,1750519838264,-150.0,0.00023836,2]
[366856214,1750519838275,-694.50846782,0.00023866,10]
[366856215,1750519838285,-2346.6835,0.000239,2]
[366856216,1750519838294,-253.08,0.00023951,2]
[366856217,1750519838304,-301.13,0.00023951,2]
[366856218,1750519838315,-254.07,0.00023951,2]
[366856219,1750519838327,-500.0,0.00023951,2]
[366856220,1750519838339,-207.4,0.00023974,2]
[366856221,1750519838349,-274.18862171,0.00023974,2]
[366856222,1750519838362,-1683.66737829,0.00023974,2]
[366856223,1750519838372,-3000.0,0.00024,2]
[366856224,1750519838381,-15804.59066493,0.00024,3]
[366856225,1750519838393,-2210.33845425,0.00024,3]
[366856226,1750519838404,-1791.94476017,0.00024,3]
[366856227,1750519838416,-4914.23843911,0.00024,3]
[366856228,1750519838428,-9351.98052229,0.00024,3]
[366856231,1750519838444,-295.86221699,0.00024,3]
[366856233,1750519838456,-3896.98578211,0.00024,3]
[366856235,1750519838467,-451.15504761,0.00024,3]
[366856238,1750519838480,-42398.13104667,0.00024,3]
[366856240,1750519838489,-5000.00585281,0.00024,5]
[366856242,1750519838499,-202.0,0.00024004,9]
[366856244,1750519838508,-2030.296672,0.00024029,2]
[366856246,1750519838517,-2105.41764886,0.00024084,2]
[366856248,1750519838527,-2183.31810187,0.00024139,2]
[366856250,1750519838536,-432.57749911,0.00024182,2]
[366856253,1750519838546,-2264.10087164,0.00024194,2]
[366856255,1750519838555,-250.0,0.000242,2]
[366856257,1750519838565,-300.0,0.000242,2]
[366856259,1750519838574,-2347.87260389,0.00024249,2]
[366856261,1750519838586,-245.32646376,0.00024259,2]
[366856263,1750519838595,-2434.74389024,0.00024304,2]
[366856265,1750519838604,-694.50846782,0.00024348,11]
[366856267,1750519838614,-2524.82941417,0.00024359,2]
[366856269,1750519838623,-2618.2481025,0.00024414,2]
[366856271,1750519838633,-2568.5032117,0.00024469,2]
[366856273,1750519838643,-245.32646373,0.00024482,2]
[366856275,1750519838657,-254.99,0.00024492,2]
[366856277,1750519838667,-300.36,0.00024492,2]
[366856279,1750519838678,-252.28,0.00024492,2]
[366856282,1750519838687,-2000.0,0.00024658,15]
[366856284,1750519838697,-154.57,0.0002469,2]
[366856286,1750519838706,-64995.61535323,0.00024699,2]
[366856288,1750519838716,-516.18542612,0.00024699,2]
[366856290,1750519838725,-939.66404766,0.00024699,2]
[366856292,1750519838735,-500.0,0.00024699,2]
[366856294,1750519838744,-500.0,0.00024699,2]
[366856296,1750519838754,-500.0,0.00024699,2]
[366856297,1750519838763,-939.66404766,0.00024699,2]
[366856299,1750519838773,-500.0,0.00024699,2]
[366856301,1750519838782,-939.66404766,0.00024699,2]
[366856303,1750519838792,-189.48352933,0.00024699,2]
[366856305,1750519838802,-470.71214551,0.00024699,2]
[366856307,1750519838811,-500.0,0.00024699,2]
[366856310,1750519838821,-939.66404766,0.00024699,2]
[366856311,1750519838831,-175.82629953,0.00024699,2]
[366856314,1750519838843,-500.0,0.00024699,2]
[366856316,1750519838854,-939.66404766,0.00024699,2]
[366856318,1750519838864,-939.66404766,0.00024699,2]
[366856320,1750519838875,-515.29554958,0.00024699,2]
[366856322,1750519838886,-939.66404766,0.00024699,2]
[366856324,1750519838896,-939.66404766,0.00024699,2]
[366856326,1750519838906,-939.66404766,0.00024699,2]
[366856328,1750519838916,-500.0,0.00024699,2]
[366856330,1750519838926,-500.0,0.00024699,2]
[366856332,1750519838936,-939.66404766,0.00024699,2]